[Event "27th OIBM 2024"]
[Site "Gmund am Tegernsee"]
[Date "2024.10.29"]
[Round "4.18"]
[White "Naumann, Alexander"]
[Black "Fruth, David"]
[Result "1/2-1/2"]
[ECO "A37"]
[WhiteElo "2487"]
[BlackElo "1966"]
[Annotator "RC"]
[PlyCount "92"]
[EventDate "2024.09.16"]
[EventType "swiss"]
[EventCountry "GER"]
[SourceTitle "playchess.com"]
[Source "ChessBase"]
[SourceQuality "1"]
[TimeControl "40/5400+30:1800+30"]

1. c4 {[%emt 0:07:00]} c5 {[%emt 0:00:05]} 2. Nf3 {[%emt 0:00:24]} g6 {[%emt 0:00:45]} 3. g3 {[%emt 0:00:15]} Bg7 {[%emt 0:00:03]} 4. Bg2 {[%emt 0:00:07]} Nc6 {[%emt 0:00:07]} 5. Nc3 {[%emt 0:00:12]} d6 {[%emt 0:00:05]} 6. O-O {[%emt 0:00:10]} e5 {[%emt 0:00:04]} 7. a3 {[%emt 0:00:26]} a5 {[%emt 0:00:35]} 8. Ne1 {[%emt 0:00:36]} Be6 {[%emt 0:00:06]} 9. d3 {[%emt 0:00:12]} Nge7 {[%emt 0:00:04]} 10. Nc2 {[%emt 0:02:51]} d5 {[%emt 0:00:19]} 11. cxd5 {[%emt 0:00:05]} Nxd5 {[%emt 0:00:10]} 12. Ne3 {[%emt 0:00:18]} Nb6 {[%emt 0:00:59]} 13. Na4 {[%emt 0:04:26]} Nxa4 {[%emt 0:01:09]} 14. Qxa4 {[%emt 0:00:27]} O-O {[%emt 0:00:22]} 15. Bxc6 {[%emt 0:05:10]} bxc6 {[%emt 0:00:14]} 16. Qxc6 {[%emt 0:00:46]} Qd4 {[%emt 0:00:09]} 17. Nc2 {[%emt 0:08:35]} Qg4 {[%emt 0:00:15]} 18. f3 {[%emt 0:00:19]} Qh3 {[%emt 0:00:12]} 19. Ne3 {[%emt 0:04:08]} e4 {[%emt 0:00:03]} 20. fxe4 {[%emt 0:03:46]} Bd4 {[%emt 0:00:27]} 21. Bd2 {[%emt 0:06:34]} Qh6 {[%emt 0:01:10]} 22. Rf4 {[%emt 0:02:17]} Rab8 {[%emt 0:05:17]} 23. Bc1 {[%emt 0:10:38]} c4 {[%emt 0:13:15]} 24. e5 {[%emt 0:10:44]} Bxb2 {[%emt 0:10:51]} 25. Bxb2 {[%emt 0:00:49]} Rxb2 {[%emt 0:00:03]} 26. Nxc4 {[%emt 0:01:53]} Rxe2 {[%emt 0:02:40]} 27. Rh4 {[%emt 0:03:19]} Qg5 {[%emt 0:00:25]} 28. Qf3 {[%emt 0:00:14]} Rc2 {[%emt 0:01:52]} 29. Qf4 {[%emt 0:06:44]} Qxf4 {[%emt 0:02:19]} 30. Rxf4 {[%emt 0:00:10]} Bxc4 {[%emt 0:01:19]} 31. Rxc4 {[%emt 0:01:57]} Re2 {[%emt 0:03:11]} 32. Rf1 {[%emt 0:03:44]} Rxe5 {[%emt 0:02:13]} 33. Rc7 {[%emt 0:00:48]} f5 {[%emt 0:00:50]} 34. Rb1 {[%emt 0:04:28]} Rf7 {[%emt 0:00:29]} 35. Rb8+ {[%emt 0:00:24]} Kg7 {[%emt 0:00:05]} 36. Rbb7 {[%emt 0:00:04]} Rxc7 {[%emt 0:02:29]} 37. Rxc7+ {[%emt 0:00:48]} Kf6 {[%emt 0:01:56]} 38. Rxh7 {[%emt 0:04:30]} Re1+ {[%emt 0:00:26]} 39. Kf2 {[%emt 0:00:01]} Ra1 {[%emt 0:00:08]} 40. Ke3 {[%emt 0:00:27]} Rxa3 {[%emt 0:00:44]} 41. h4 {[%emt 0:30:15]} Ra1 {[%emt 0:30:11]} 42. Ra7 {[%emt 0:00:09]} a4 {[%emt 0:00:39]} 43. Ra6+ {[%emt 0:00:44]} Kf7 {[%emt 0:00:05]} 44. Ra7+ {[%emt 0:01:27]} Kf6 {[%emt 0:00:04]} 45. Ra6+ {[%emt 0:00:04]} Kf7 {[%emt 0:00:07]} 46. Ra7+ {[%emt 0:00:05]} Kf6 {[%emt 0:00:31]} 1/2-1/2

[Event "27th OIBM 2024"]
[Site "Gmund am Tegernsee"]
[Date "2024.10.29"]
[Round "4.19"]
[White "Zeier, Klaus"]
[Black "Tan, Yi Rui Ray"]
[Result "1-0"]
[ECO "B52"]
[WhiteElo "2178"]
[BlackElo "1951"]
[Annotator "RC"]
[PlyCount "71"]
[EventDate "2024.09.16"]
[EventType "swiss"]
[EventCountry "GER"]
[SourceTitle "playchess.com"]
[Source "ChessBase"]
[SourceQuality "1"]
[TimeControl "40/5400+30:1800+30"]

1. e4 {[%emt 0:00:03]} c5 {[%emt 0:00:06]} 2. Nf3 {[%emt 0:00:11]} d6 {[%emt 0:00:02]} 3. Bb5+ {[%emt 0:00:14]} Bd7 {[%emt 0:00:02]} 4. Bxd7+ {[%emt 0:00:12]} Qxd7 {[%emt 0:00:02]} 5. O-O {[%emt 0:00:41]} Nf6 {[%emt 0:00:04]} 6. Qe2 {[%emt 1:32:09]} Nc6 {[%emt 0:00:14]} 7. Rd1 {[%emt 0:00:00]} g5 {[%emt 0:01:33]} 8. c3 {[%emt 0:00:00]} g4 {[%emt 0:00:07]} 9. Ne1 {[%emt 0:00:00]} Qe6 {[%emt 0:01:44]} 10. d3 {[%emt 0:00:00]} d5 {[%emt 0:01:19]} 11. Be3 {[%emt 0:00:00]} d4 {[%emt 0:27:50]} 12. cxd4 {[%emt 0:00:00]} cxd4 {[%emt 0:01:58]} 13. Bd2 {[%emt 0:00:00]} h5 {[%emt 0:08:22]} 14. Na3 {[%emt 0:00:00]} h4 {[%emt 0:17:31]} 15. Rdc1 {[%emt 0:00:00]} Qd7 {[%emt 0:10:19]} 16. b4 {[%emt 0:00:00]} e6 {[%emt 0:09:38]} 17. Rab1 {[%emt 0:00:00]} Ne5 {[%emt 0:06:08]} 18. Nc4 {[%emt 0:00:00]} Ng6 {[%emt 0:03:30]} 19. e5 {[%emt 0:00:00]} Nd5 {[%emt 0:01:53]} 20. Qxg4 {[%emt 0:00:00]} b5 {[%emt 0:01:06]} 21. Na5 {[%emt 0:00:00]} Nxe5 {[%emt 0:02:33]} 22. Qxd4 {[%emt 0:00:00]} Rh5 {[%emt 0:01:46]} 23. Qe4 {[%emt 0:00:00]} Rd8 {[%emt 0:01:30]} 24. Qe2 {[%emt 0:00:00]} Rf5 {[%emt 0:00:18]} 25. d4 {[%emt 0:00:00]} Ng6 {[%emt 0:00:06]} 26. Nd3 {[%emt 0:00:00]} Bd6 {[%emt 0:01:39]} 27. Nb3 {[%emt 0:01:46]} Ndf4 {[%emt 0:00:57]} 28. Nxf4 {[%emt 0:00:26]} Bxf4 {[%emt 0:01:35]} 29. Be3 {[%emt 0:02:44]} Qd6 {[%emt 0:00:26]} 30. Rc5 {[%emt 0:01:14]} Rxc5 {[%emt 0:00:39]} 31. bxc5 {[%emt 0:00:21]} Qd7 {[%emt 0:00:30]} 32. Qf3 {[%emt 0:01:44]} Bb8 {[%emt 0:00:28]} 33. g3 {[%emt 0:00:44]} Qc7 {[%emt 0:00:27]} 34. Nd2 {[%emt 0:00:52]} a6 {[%emt 0:00:36]} 35. Ne4 {[%emt 0:00:15]} Qe7 {[%emt 0:00:31]} 36. Bg5 {[%emt 0:00:21]} 1-0

[Event "27th OIBM 2024"]
[Site "Gmund am Tegernsee"]
[Date "2024.10.29"]
[Round "4.20"]
[White "Ciolek, Andreas"]
[Black "Basener, Winfried"]
[Result "1-0"]
[ECO "E11"]
[WhiteElo "2173"]
[BlackElo "1949"]
[Annotator "RC"]
[PlyCount "87"]
[EventDate "2024.09.16"]
[EventType "swiss"]
[EventCountry "GER"]
[SourceTitle "playchess.com"]
[Source "ChessBase"]
[SourceQuality "1"]
[TimeControl "40/5400+30:1800+30"]

1. d4 {[%emt 0:00:38]} Nf6 {[%emt 0:00:06]} 2. c4 {[%emt 0:00:13]} e6 {[%emt 0:00:07]} 3. Nf3 {[%emt 0:00:10]} Bb4+ {[%emt 0:00:13]} 4. Nbd2 {[%emt 0:00:10]} b6 {[%emt 0:00:45]} 5. a3 {[%emt 0:00:10]} Be7 {[%emt 0:01:08]} 6. e4 {[%emt 0:00:11]} d5 {[%emt 0:00:23]} 7. e5 {[%emt 0:00:18]} Nfd7 {[%emt 0:00:08]} 8. cxd5 {[%emt 0:00:11]} exd5 {[%emt 0:00:11]} 9. Bd3 {[%emt 0:00:06]} Nf8 {[%emt 0:38:45]} 10. O-O {[%emt 0:09:15]} Ne6 {[%emt 0:00:46]} 11. Re1 {[%emt 0:00:46]} O-O {[%emt 0:03:35]} 12. Nf1 {[%emt 0:10:36]} c5 {[%emt 0:04:50]} 13. dxc5 {[%emt 0:02:34]} bxc5 {[%emt 0:02:07]} 14. Ne3 {[%emt 0:04:11]} g6 {[%emt 0:03:58]} 15. Ng4 {[%emt 0:25:10]} Nd7 {[%emt 0:05:01]} 16. Qd2 {[%emt 0:02:06]} Bb7 {[%emt 0:06:08]} 17. Qh6 {[%emt 0:02:26]} c4 {[%emt 0:01:36]} 18. Bc2 {[%emt 0:01:29]} d4 {[%emt 0:00:54]} 19. Qh3 {[%emt 0:10:43]} d3 {[%emt 0:02:12]} 20. Bd1 {[%emt 0:02:49]} Bxf3 {[%emt 0:15:41]} 21. Bxf3 {[%emt 0:00:50]} Rb8 {[%emt 0:01:54]} 22. Nh6+ {[%emt 0:06:55]} Kh8 {[%emt 0:01:23]} 23. Nxf7+ {[%emt 0:00:36]} Rxf7 {[%emt 0:00:10]} 24. Qxe6 {[%emt 0:00:07]} Rxf3 {[%emt 0:00:35]} 25. gxf3 {[%emt 0:00:13]} Nc5 {[%emt 0:03:43]} 26. Qxc4 {[%emt 0:05:30]} d2 {[%emt 0:00:17]} 27. Bxd2 {[%emt 0:00:11]} Qxd2 {[%emt 0:00:08]} 28. Re2 {[%emt 0:01:53]} Qg5+ {[%emt 0:01:36]} 29. Qg4 {[%emt 0:01:02]} Nd3 {[%emt 0:02:07]} 30. Qxg5 {[%emt 0:02:15]} Bxg5 {[%emt 0:00:02]} 31. Rd1 {[%emt 0:00:28]} Rxb2 {[%emt 0:00:55]} 32. Rxb2 {[%emt 0:00:35]} Nxb2 {[%emt 0:00:02]} 33. Rd7 {[%emt 0:00:22]} a5 {[%emt 0:00:34]} 34. f4 {[%emt 0:02:25]} Bxf4 {[%emt 0:02:16]} 35. e6 {[%emt 0:00:13]} Bg5 {[%emt 0:00:10]} 36. Rd5 {[%emt 0:05:09]} Be7 {[%emt 0:01:00]} 37. Rxa5 {[%emt 0:00:49]} Nc4 {[%emt 0:01:32]} 38. Ra7 {[%emt 0:00:23]} Bc5 {[%emt 0:01:11]} 39. Rc7 {[%emt 0:00:43]} Nxa3 {[%emt 0:00:48]} 40. Rxc5 {[%emt 0:00:08]} Kg7 {[%emt 0:01:33]} 41. Kf1 {[%emt 0:31:40]} Kf6 {[%emt 0:28:54]} 42. Ke2 {[%emt 0:00:10]} Kxe6 {[%emt 0:00:32]} 43. Kd3 {[%emt 0:00:08]} Kd6 {[%emt 0:01:06]} 44. Ra5 {[%emt 0:05:33]} 1-0

[Event "27th OIBM 2024"]
[Site "Gmund am Tegernsee"]
[Date "2024.10.29"]
[Round "4.21"]
[White "Lishoy Gengis Paratazham, Dildarav"]
[Black "Southcott-Moyers, Indy"]
[Result "0-1"]
[ECO "A07"]
[WhiteElo "1945"]
[BlackElo "2143"]
[Annotator "RC"]
[PlyCount "167"]
[EventDate "2024.09.16"]
[EventType "swiss"]
[EventCountry "GER"]
[SourceTitle "playchess.com"]
[Source "ChessBase"]
[SourceQuality "1"]
[TimeControl "40/5400+30:1800+30"]

1. Nf3 {[%emt 0:00:01]} d5 {[%emt 0:00:07]} 2. g3 {[%emt 0:00:06]} b6 {[%emt 0:01:38]} 3. Bg2 {[%emt 0:00:16]} Bb7 {[%emt 0:00:05]} 4. O-O {[%emt 0:03:24]} e6 {[%emt 0:00:39]} 5. b3 {[%emt 0:00:29]} Nf6 {[%emt 0:06:18]} 6. Bb2 {[%emt 0:00:05]} Be7 {[%emt 0:02:36]} 7. c4 {[%emt 0:00:12]} dxc4 {[%emt 0:01:47]} 8. bxc4 {[%emt 0:00:06]} c5 {[%emt 0:01:05]} 9. Qc2 {[%emt 0:01:53]} Qc8 {[%emt 0:10:06]} 10. d3 {[%emt 0:03:46]} O-O {[%emt 0:02:08]} 11. Nbd2 {[%emt 0:00:39]} Nc6 {[%emt 0:03:18]} 12. Rfd1 {[%emt 0:03:14]} Rd8 {[%emt 0:02:34]} 13. Nb3 {[%emt 0:00:24]} Qc7 {[%emt 0:01:59]} 14. a3 {[%emt 0:05:31]} Rac8 {[%emt 0:04:38]} 15. Rac1 {[%emt 0:02:11]} h6 {[%emt 0:01:21]} 16. e3 {[%emt 0:09:57]} Qb8 {[%emt 0:07:01]} 17. Qe2 {[%emt 0:01:36]} Re8 {[%emt 0:03:07]} 18. Qd2 {[%emt 0:03:32]} Qa8 {[%emt 0:01:58]} 19. e4 {[%emt 0:01:47]} Red8 {[%emt 0:02:13]} 20. Qc2 {[%emt 0:04:07]} Nh7 {[%emt 0:01:43]} 21. Ne5 {[%emt 0:03:39]} Nxe5 {[%emt 0:01:25]} 22. Bxe5 {[%emt 0:00:02]} Bf6 {[%emt 0:00:32]} 23. Qc3 {[%emt 0:03:57]} Bxe5 {[%emt 0:02:05]} 24. Qxe5 {[%emt 0:00:13]} Nf6 {[%emt 0:00:52]} 25. h3 {[%emt 0:04:25]} Nd7 {[%emt 0:04:15]} 26. Qc3 {[%emt 0:01:00]} Nb8 {[%emt 0:01:49]} 27. Rd2 {[%emt 0:10:09]} Nc6 {[%emt 0:00:26]} 28. Rcd1 {[%emt 0:01:06]} e5 {[%emt 0:05:06]} 29. Na1 {[%emt 0:04:52]} Rd6 {[%emt 0:02:07]} 30. Nc2 {[%emt 0:00:33]} Rf8 {[%emt 0:01:17]} 31. Ne3 {[%emt 0:02:02]} Nd4 {[%emt 0:00:12]} 32. g4 {[%emt 0:00:41]} g6 {[%emt 0:04:32]} 33. Rf1 {[%emt 0:05:26]} Rf6 {[%emt 0:01:37]} 34. f3 {[%emt 0:02:19]} Bc6 {[%emt 0:01:31]} 35. Nc2 {[%emt 0:02:24]} Rd8 {[%emt 0:00:47]} 36. Rdf2 {[%emt 0:03:55]} Qb8 {[%emt 0:03:00]} 37. Kh1 {[%emt 0:01:10]} Nxc2 {[%emt 0:00:16]} 38. Qxc2 {[%emt 0:00:12]} Rd4 {[%emt 0:00:47]} 39. Qc1 {[%emt 0:01:11]} Rf4 {[%emt 0:00:26]} 40. Qc3 {[%emt 0:04:34]} Qd8 {[%emt 0:01:13]} 41. Rd2 {[%emt 0:34:45]} Ba4 {[%emt 0:30:33]} 42. Rdf2 {[%emt 0:01:47]} Kh7 {[%emt 0:04:11]} 43. Re2 {[%emt 0:00:54]} Qg5 {[%emt 0:02:45]} 44. Rfe1 {[%emt 0:07:58]} Rf6 45. Qd2 Qxd2 46. Rxd2 {[%emt 0:00:00]} Rfd6 {[%emt 0:02:10]} 47. Rde2 {[%emt 0:01:30]} Rf6 {[%emt 0:06:14]} 48. Rd2 {[%emt 0:00:00]} Rfd6 {[%emt 0:00:05]} 49. Bf1 {[%emt 0:00:00]} Rxc4 {[%emt 0:00:12]} 50. dxc4 {[%emt 0:00:00]} Rxd2 {[%emt 0:00:04]} 51. Re3 {[%emt 0:00:00]} Kg7 {[%emt 0:01:29]} 52. Kg1 {[%emt 0:00:00]} Kf6 {[%emt 0:00:57]} 53. h4 {[%emt 0:00:05]} Ke7 {[%emt 0:00:47]} 54. Be2 {[%emt 0:01:21]} Bd1 {[%emt 0:00:00]} 55. Bd3 {[%emt 0:00:00]} Bb3 {[%emt 0:00:00]} 56. Bf1 {[%emt 0:00:00]} Ba4 {[%emt 0:00:00]} 57. Be2 {[%emt 0:00:00]} a6 {[%emt 0:00:00]} 58. Kf1 {[%emt 0:00:00]} Ra2 {[%emt 0:00:00]} 59. Rc3 {[%emt 0:00:00]} f6 {[%emt 0:00:00]} 60. Ke1 {[%emt 0:00:00]} Ra1+ {[%emt 0:00:00]} 61. Kf2 {[%emt 0:05:34]} Rh1 {[%emt 0:00:00]} 62. Kg3 {[%emt 0:00:00]} Kd6 {[%emt 0:00:00]} 63. Rd3+ {[%emt 0:00:00]} Kc7 {[%emt 0:00:00]} 64. Rd5 {[%emt 0:00:00]} g5 {[%emt 0:00:00]} 65. h5 {[%emt 0:00:00]} Rc1 {[%emt 0:00:00]} 66. Kf2 {[%emt 0:00:00]} Bb3 {[%emt 0:00:50]} 67. Ke3 {[%emt 0:00:00]} Bxc4 {[%emt 0:00:25]} 68. Bxc4 {[%emt 0:00:00]} Rxc4 {[%emt 0:00:01]} 69. Rd3 {[%emt 0:00:00]} Rd4 {[%emt 0:00:21]} 70. Rb3 {[%emt 0:00:00]} b5 {[%emt 0:00:12]} 71. Rc3 {[%emt 0:00:00]} c4 {[%emt 0:00:47]} 72. Ke2 {[%emt 0:00:00]} Rd3 {[%emt 0:00:51]} 73. Rxd3 {[%emt 0:00:00]} cxd3+ {[%emt 0:00:01]} 74. Kxd3 {[%emt 0:00:00]} Kc6 {[%emt 0:00:12]} 75. Kc2 {[%emt 0:00:00]} Kb6 {[%emt 0:00:13]} 76. Kc3 {[%emt 0:00:00]} a5 {[%emt 0:00:11]} 77. Kd3 {[%emt 0:00:00]} Kc5 {[%emt 0:00:30]} 78. Kc3 {[%emt 0:08:30]} b4+ 79. axb4+ axb4+ 80. Kb3 Kd4 81. Kxb4 {[%emt 0:00:00]} Ke3 {[%emt 0:01:32]} 82. Kc3 {[%emt 0:00:00]} Kxf3 {[%emt 0:00:00]} 83. Kd3 {[%emt 0:02:30]} Kf4 84. Kc4 {[%emt 0:00:00]} 0-1

[Event "27th OIBM 2024"]
[Site "Gmund am Tegernsee"]
[Date "2024.10.29"]
[Round "4.22"]
[White "Gernhuber, Darian"]
[Black "Butenandt, Svenja"]
[Result "0-1"]
[ECO "B12"]
[WhiteElo "1886"]
[BlackElo "2141"]
[Annotator "RC"]
[PlyCount "144"]
[EventDate "2024.09.16"]
[EventType "swiss"]
[EventCountry "GER"]
[SourceTitle "playchess.com"]
[Source "ChessBase"]
[SourceQuality "1"]
[TimeControl "40/5400+30:1800+30"]

1. e4 {[%emt 0:00:04]} c6 {[%emt 0:00:55]} 2. d4 {[%emt 0:00:07]} d5 {[%emt 0:00:04]} 3. e5 {[%emt 0:00:07]} Bf5 {[%emt 0:00:09]} 4. Nc3 {[%emt 0:00:36]} e6 {[%emt 0:00:48]} 5. g4 {[%emt 0:00:42]} Bg6 {[%emt 0:00:09]} 6. Nge2 {[%emt 0:01:07]} c5 {[%emt 0:00:59]} 7. h4 {[%emt 0:00:53]} h5 {[%emt 0:00:41]} 8. Nf4 {[%emt 0:01:11]} Bh7 {[%emt 0:00:25]} 9. g5 {[%emt 0:01:27]} Bf5 {[%emt 0:21:29]} 10. Nxh5 {[%emt 0:10:47]} Nc6 {[%emt 0:17:25]} 11. Ng3 {[%emt 0:03:23]} cxd4 {[%emt 0:05:00]} 12. Nb5 {[%emt 0:05:44]} Bb4+ {[%emt 0:10:10]} 13. c3 {[%emt 0:10:24]} dxc3 {[%emt 0:00:23]} 14. bxc3 {[%emt 0:00:06]} Bc5 {[%emt 0:01:38]} 15. Nxf5 {[%emt 0:02:10]} exf5 {[%emt 0:00:02]} 16. Qxd5 {[%emt 0:09:15]} Qxd5 {[%emt 0:00:13]} 17. Nc7+ {[%emt 0:00:04]} Kf8 {[%emt 0:00:27]} 18. Nxd5 {[%emt 0:00:05]} Nxe5 {[%emt 0:00:15]} 19. Be3 {[%emt 0:04:59]} Bxe3 {[%emt 0:01:11]} 20. Nxe3 {[%emt 0:04:44]} Rxh4 {[%emt 0:02:15]} 21. Rxh4 {[%emt 0:06:30]} Nf3+ {[%emt 0:00:04]} 22. Ke2 {[%emt 0:00:29]} Nxh4 {[%emt 0:00:04]} 23. f4 {[%emt 0:02:49]} Re8 {[%emt 0:02:58]} 24. Rd1 {[%emt 0:01:56]} f6 {[%emt 0:09:29]} 25. Kf2 {[%emt 0:03:31]} fxg5 {[%emt 0:02:17]} 26. fxg5 {[%emt 0:00:09]} Ne7 {[%emt 0:06:31]} 27. Rd7 {[%emt 0:01:57]} Rb8 {[%emt 0:01:42]} 28. a4 {[%emt 0:03:16]} a6 {[%emt 0:01:05]} 29. c4 {[%emt 0:00:19]} Ke8 {[%emt 0:02:37]} 30. Rd6 {[%emt 0:01:07]} Rc8 {[%emt 0:06:53]} 31. Rb6 {[%emt 0:04:07]} f4 {[%emt 0:02:10]} 32. Ng2 {[%emt 0:08:24]} Nxg2 {[%emt 0:00:04]} 33. Kxg2 {[%emt 0:00:12]} Rc5 {[%emt 0:00:34]} 34. Rxb7 {[%emt 0:00:26]} Rxg5+ {[%emt 0:00:07]} 35. Kf3 {[%emt 0:02:36]} Rg1 {[%emt 0:00:12]} 36. Kf2 {[%emt 0:02:54]} Rg6 {[%emt 0:01:30]} 37. Bg2 {[%emt 0:02:43]} Rf6 {[%emt 0:01:03]} 38. c5 {[%emt 0:00:57]} g5 {[%emt 0:01:35]} 39. Rb6 {[%emt 0:03:14]} Rf5 {[%emt 0:03:35]} 40. Rxa6 {[%emt 0:04:19]} Rxc5 {[%emt 0:00:35]} 41. Bf3 {[%emt 0:03:07]} Rc2+ {[%emt 0:03:15]} 42. Kg1 {[%emt 0:02:39]} Nf5 {[%emt 0:01:50]} 43. Rc6 {[%emt 0:09:14]} Ra2 {[%emt 0:02:19]} 44. Rc8+ {[%emt 0:00:31]} Ke7 {[%emt 0:01:10]} 45. Rg8 {[%emt 0:00:27]} Nd4 {[%emt 0:06:43]} 46. Bg4 {[%emt 0:04:17]} Kf6 {[%emt 0:03:54]} 47. Rf8+ {[%emt 0:01:13]} Kg7 {[%emt 0:00:56]} 48. Rd8 {[%emt 0:01:48]} Rxa4 {[%emt 0:03:51]} 49. Rd5 {[%emt 0:00:24]} Kf6 {[%emt 0:01:25]} 50. Rd6+ {[%emt 0:00:12]} Ke5 {[%emt 0:03:44]} 51. Rg6 {[%emt 0:00:28]} Ra1+ {[%emt 0:04:32]} 52. Kf2 {[%emt 0:02:16]} Ra2+ {[%emt 0:00:02]} 53. Kf1 {[%emt 0:01:05]} Ke4 {[%emt 0:01:19]} 54. Rxg5 {[%emt 0:00:17]} Nf3 {[%emt 0:01:19]} 55. Bxf3+ {[%emt 0:04:28]} Kxf3 {[%emt 0:00:02]} 56. Ke1 {[%emt 0:00:06]} Ra1+ {[%emt 0:00:27]} 57. Kd2 {[%emt 0:00:07]} Kf2 {[%emt 0:00:29]} 58. Kd3 {[%emt 0:01:21]} Re1 {[%emt 0:00:16]} 59. Kd2 {[%emt 0:03:59]} f3 {[%emt 0:00:19]} 60. Rh5 {[%emt 0:00:54]} Re8 {[%emt 0:01:39]} 61. Rf5 {[%emt 0:01:05]} Rd8+ {[%emt 0:00:44]} 62. Kc2 {[%emt 0:00:14]} Ke2 {[%emt 0:00:15]} 63. Re5+ {[%emt 0:00:17]} Kf1 {[%emt 0:00:07]} 64. Rh5 {[%emt 0:01:37]} f2 {[%emt 0:00:10]} 65. Rg5 {[%emt 0:00:09]} Rd4 {[%emt 0:01:01]} 66. Kc3 {[%emt 0:00:17]} Rd7 {[%emt 0:00:30]} 67. Kc2 {[%emt 0:00:15]} Rd6 {[%emt 0:00:53]} 68. Kc3 {[%emt 0:00:39]} Ke1 {[%emt 0:00:49]} 69. Re5+ {[%emt 0:00:13]} Kd1 {[%emt 0:00:20]} 70. Rf5 {[%emt 0:00:07]} Rd2 {[%emt 0:00:30]} 71. Ra5 {[%emt 0:01:33]} Rc2+ {[%emt 0:00:20]} 72. Kb3 {[%emt 0:00:13]} f1=Q {[%emt 0:00:28]} 0-1

[Event "27th OIBM 2024"]
[Site "Gmund am Tegernsee"]
[Date "2024.10.29"]
[Round "4.23"]
[White "Huber, Benedikt"]
[Black "Noack, Mario"]
[Result "1-0"]
[ECO "A30"]
[WhiteElo "2299"]
[BlackElo "1885"]
[Annotator "RC"]
[PlyCount "77"]
[EventDate "2024.09.16"]
[EventType "swiss"]
[EventCountry "GER"]
[SourceTitle "playchess.com"]
[Source "ChessBase"]
[SourceQuality "1"]
[TimeControl "40/5400+30:1800+30"]

1. Nf3 {[%emt 0:00:09]} c5 {[%emt 0:00:11]} 2. g3 {[%emt 0:00:48]} b6 {[%emt 0:01:13]} 3. Bg2 {[%emt 0:00:58]} Bb7 {[%emt 0:00:14]} 4. c4 {[%emt 0:00:34]} g6 {[%emt 0:00:50]} 5. O-O {[%emt 0:02:28]} Bg7 {[%emt 0:00:32]} 6. Nc3 {[%emt 0:00:09]} e6 {[%emt 0:01:12]} 7. e3 {[%emt 0:01:43]} Ne7 {[%emt 0:00:25]} 8. d4 {[%emt 0:01:58]} d5 {[%emt 0:03:18]} 9. dxc5 {[%emt 0:05:42]} bxc5 {[%emt 0:04:22]} 10. cxd5 {[%emt 0:02:05]} exd5 {[%emt 0:02:47]} 11. Qb3 {[%emt 0:02:14]} Qb6 {[%emt 0:01:50]} 12. Rd1 {[%emt 0:00:47]} Qxb3 {[%emt 0:00:54]} 13. axb3 {[%emt 0:00:02]} O-O {[%emt 0:01:01]} 14. Ra5 {[%emt 0:08:48]} Nd7 {[%emt 0:11:30]} 15. Ng5 {[%emt 1:09:35]} h6 {[%emt 0:01:50]} 16. Nh3 {[%emt 0:00:00]} Nc6 {[%emt 0:01:10]} 17. Ra1 {[%emt 0:00:00]} d4 {[%emt 0:07:13]} 18. Nb5 {[%emt 0:00:00]} Nd8 {[%emt 0:04:42]} 19. exd4 {[%emt 0:00:00]} Bxg2 {[%emt 0:02:31]} 20. Kxg2 {[%emt 0:00:00]} Rb8 {[%emt 0:03:39]} 21. Rxa7 {[%emt 0:00:00]} Rxb5 {[%emt 0:01:12]} 22. Rxd7 {[%emt 0:00:00]} cxd4 {[%emt 0:00:25]} 23. Nf4 {[%emt 0:00:00]} Rxb3 {[%emt 0:03:12]} 24. h4 {[%emt 0:00:00]} Nc6 {[%emt 0:01:08]} 25. h5 {[%emt 0:00:00]} g5 {[%emt 0:00:42]} 26. Nd5 {[%emt 0:00:00]} Re8 {[%emt 0:03:14]} 27. Rc7 {[%emt 0:00:00]} Nd8 {[%emt 0:08:26]} 28. Ne7+ {[%emt 0:00:00]} Kf8 {[%emt 0:00:48]} 29. Nf5 {[%emt 0:00:00]} Ne6 {[%emt 0:01:10]} 30. Rd7 {[%emt 0:00:00]} Be5 {[%emt 0:01:36]} 31. Ng7 {[%emt 0:00:00]} Kxg7 {[%emt 0:04:08]} 32. R7xd4 {[%emt 0:00:00]} Rb7 {[%emt 0:02:03]} 33. Rc4 {[%emt 0:00:00]} Nd4 {[%emt 0:00:33]} 34. Be3 {[%emt 0:00:00]} Nc2 {[%emt 0:02:35]} 35. Rc6 {[%emt 0:00:00]} Ra8 {[%emt 0:05:25]} 36. Rb6 {[%emt 0:10:30]} Rxb6 37. Bxb6 Ra6 38. Bd4 f6 39. Ra1 {[%emt 0:00:00]} 1-0

[Event "27th OIBM 2024"]
[Site "Gmund am Tegernsee"]
[Date "2024.10.29"]
[Round "4.24"]
[White "Esser, Julian"]
[Black "Aumueller, Naum"]
[Result "1/2-1/2"]
[ECO "C77"]
[WhiteElo "1881"]
[BlackElo "2139"]
[Annotator "RC"]
[PlyCount "84"]
[EventDate "2024.09.16"]
[EventType "swiss"]
[EventCountry "GER"]
[SourceTitle "playchess.com"]
[Source "ChessBase"]
[SourceQuality "1"]
[TimeControl "40/5400+30:1800+30"]

1. e4 {[%emt 0:00:02]} e5 {[%emt 0:00:05]} 2. Nf3 {[%emt 0:00:05]} Nc6 {[%emt 0:00:09]} 3. Bb5 {[%emt 0:00:07]} a6 {[%emt 0:00:47]} 4. Ba4 {[%emt 0:00:06]} Nf6 {[%emt 0:00:51]} 5. d3 {[%emt 0:00:06]} d6 {[%emt 0:03:53]} 6. c3 {[%emt 0:00:07]} Be7 {[%emt 0:01:30]} 7. Nbd2 {[%emt 0:00:07]} O-O {[%emt 0:01:59]} 8. O-O {[%emt 0:00:04]} b5 {[%emt 0:02:01]} 9. Bc2 {[%emt 0:00:37]} Re8 {[%emt 0:03:11]} 10. Re1 {[%emt 0:00:12]} Bf8 {[%emt 0:00:56]} 11. Nf1 {[%emt 0:00:09]} d5 {[%emt 0:07:45]} 12. Ng3 {[%emt 0:04:35]} dxe4 {[%emt 0:07:31]} 13. dxe4 {[%emt 0:00:32]} Qxd1 {[%emt 0:01:27]} 14. Rxd1 {[%emt 0:00:16]} g6 {[%emt 0:03:30]} 15. Bg5 {[%emt 0:05:37]} Kg7 {[%emt 0:02:59]} 16. h3 {[%emt 0:05:03]} Bc5 {[%emt 0:02:28]} 17. b4 {[%emt 0:10:34]} Bb6 {[%emt 0:14:25]} 18. a4 {[%emt 0:00:37]} Bb7 {[%emt 0:04:49]} 19. Kf1 {[%emt 0:04:56]} h6 {[%emt 0:05:04]} 20. Bd2 {[%emt 0:11:13]} Red8 {[%emt 0:04:45]} 21. Ke2 {[%emt 0:04:06]} Ne8 {[%emt 0:04:48]} 22. Be3 {[%emt 0:03:06]} Bxe3 {[%emt 0:01:01]} 23. Kxe3 {[%emt 0:00:16]} Nd6 {[%emt 0:00:40]} 24. Nd2 {[%emt 0:08:33]} a5 {[%emt 0:03:33]} 25. bxa5 {[%emt 0:06:00]} b4 {[%emt 0:03:08]} 26. cxb4 {[%emt 0:03:33]} Nxb4 {[%emt 0:00:40]} 27. Bb3 {[%emt 0:03:12]} f5 {[%emt 0:01:49]} 28. exf5 {[%emt 0:04:52]} gxf5 {[%emt 0:00:48]} 29. Nh5+ {[%emt 0:01:23]} Kg6 {[%emt 0:00:10]} 30. g4 {[%emt 0:00:06]} c5 {[%emt 0:04:30]} 31. Rac1 {[%emt 0:01:48]} Rxa5 {[%emt 0:05:56]} 32. f4 {[%emt 0:08:02]} Re8 {[%emt 0:01:21]} 33. Nc4 {[%emt 0:02:08]} exf4+ {[%emt 0:02:07]} 34. Kxf4 {[%emt 0:01:08]} Nxc4 {[%emt 0:02:09]} 35. Bxc4 {[%emt 0:01:37]} Re4+ {[%emt 0:01:26]} 36. Kg3 {[%emt 0:00:08]} fxg4 {[%emt 0:02:39]} 37. Nf4+ {[%emt 0:10:53]} Kg5 {[%emt 0:02:10]} 38. Ne6+ Kf6 {[%emt 0:00:00]} 39. Rd7 {[%emt 0:02:46]} Re3+ {[%emt 0:00:21]} 40. Kxg4 {[%emt 0:00:34]} Bc8 {[%emt 0:00:34]} 41. Rf1+ {[%emt 0:06:08]} Ke5 {[%emt 0:01:24]} 42. Rf5+ {[%emt 0:07:57]} Ke4 {[%emt 0:00:20]} 1/2-1/2